[Event "Early-Titled-Tuesday-Blitz-May-14-2024"]
[Site "Chess.com"]
[Date "2024.05.14"]
[Round "1"]
[White "th3d4rkness"]
[Black "Manukyan_Artak"]
[Result "1/2-1/2"]
[WhiteElo "2171"]
[BlackElo "2567"]
[TimeControl "180+1"]
[EndTime "8:09:20 PDT"]
[Termination "Game drawn by repetition"]

1. e4 {[%clk 0:03:00.9]} 1... c6 {[%clk 0:02:57.2]} 2. d4 {[%clk 0:02:57]} 2...
d5 {[%clk 0:02:57.5]} 3. e5 {[%clk 0:02:57]} 3... Bf5 {[%clk 0:02:56.7]} 4. h4
{[%clk 0:02:54.6]} 4... h5 {[%clk 0:02:56.4]} 5. Bg5 {[%clk 0:02:53.8]} 5... Qb6
{[%clk 0:02:55.9]} 6. Bd3 {[%clk 0:02:52.6]} 6... Bxd3 {[%clk 0:02:55.3]} 7.
Qxd3 {[%clk 0:02:53.1]} 7... e6 {[%clk 0:02:55.9]} 8. Nd2 {[%clk 0:02:51.7]}
8... Qa6 {[%clk 0:02:51.9]} 9. Qxa6 {[%clk 0:02:39.8]} 9... Nxa6 {[%clk
0:02:51.5]} 10. c3 {[%clk 0:02:40]} 10... c5 {[%clk 0:02:51.1]} 11. a3 {[%clk
0:02:38.7]} 11... Nh6 {[%clk 0:02:49.9]} 12. Bxh6 {[%clk 0:02:38.1]} 12... Rxh6
{[%clk 0:02:49.3]} 13. Ne2 {[%clk 0:02:36.9]} 13... Rc8 {[%clk 0:02:39.5]} 14.
Nf3 {[%clk 0:02:29.3]} 14... cxd4 {[%clk 0:02:37.7]} 15. Nfxd4 {[%clk
0:02:26.9]} 15... Nc5 {[%clk 0:02:34.1]} 16. O-O {[%clk 0:02:18.1]} 16... Nd3
{[%clk 0:02:31.4]} 17. f4 {[%clk 0:02:16.2]} 17... Nxb2 {[%clk 0:02:27.5]} 18.
Rab1 {[%clk 0:02:15.7]} 18... Na4 {[%clk 0:02:25.4]} 19. Rxb7 {[%clk 0:02:13.7]}
19... Nxc3 {[%clk 0:02:24.7]} 20. Nxc3 {[%clk 0:02:13.3]} 20... Rxc3 {[%clk
0:02:25.6]} 21. Rb8+ {[%clk 0:02:13]} 21... Kd7 {[%clk 0:02:24.3]} 22. Rfb1
{[%clk 0:02:12.6]} 22... Bxa3 {[%clk 0:02:10]} 23. R8b7+ {[%clk 0:02:11.5]}
23... Rc7 {[%clk 0:02:10]} 24. Rxc7+ {[%clk 0:02:10.8]} 24... Kxc7 {[%clk
0:02:10.4]} 25. Nb5+ {[%clk 0:02:11.4]} 25... Kc6 {[%clk 0:02:11.1]} 26. Nxa3
{[%clk 0:02:12]} 26... d4 {[%clk 0:02:11.6]} 27. Kf2 {[%clk 0:02:08.1]} 27...
Kd5 {[%clk 0:02:12.5]} 28. Kf3 {[%clk 0:02:06]} 28... f6 {[%clk 0:02:11.8]} 29.
Rb5+ {[%clk 0:01:57.2]} 29... Kc6 {[%clk 0:02:11.4]} 30. Ra5 {[%clk 0:01:54.3]}
30... d3 {[%clk 0:02:04.2]} 31. Nc4 {[%clk 0:01:47.9]} 31... Rg6 {[%clk
0:02:01.7]} 32. g3 {[%clk 0:01:43.5]} 32... Kb7 {[%clk 0:01:50.1]} 33. Ra3
{[%clk 0:01:40.9]} 33... Kc6 {[%clk 0:01:48.6]} 34. Rxd3 {[%clk 0:01:40.8]}
34... Kc5 {[%clk 0:01:49.1]} 35. Nd6 {[%clk 0:01:37.3]} 35... fxe5 {[%clk
0:01:48.8]} 36. fxe5 {[%clk 0:01:33.6]} 36... a5 {[%clk 0:01:45]} 37. Ne4+
{[%clk 0:01:32.5]} 37... Kb4 {[%clk 0:01:44.4]} 38. Rd6 {[%clk 0:01:25.5]} 38...
a4 {[%clk 0:01:41.8]} 39. Rb6+ {[%clk 0:01:25.5]} 39... Ka5 {[%clk 0:01:40.7]}
40. Rb8 {[%clk 0:01:25]} 40... a3 {[%clk 0:01:40.5]} 41. Ra8+ {[%clk 0:01:25.3]}
41... Kb4 {[%clk 0:01:40.9]} 42. Ng5 {[%clk 0:01:21.6]} 42... Kb3 {[%clk
0:01:39.6]} 43. Rb8+ {[%clk 0:01:16.5]} 43... Kc3 {[%clk 0:01:38.8]} 44. Rc8+
{[%clk 0:01:16.1]} 44... Kb2 {[%clk 0:01:38.7]} 45. Rb8+ {[%clk 0:01:15.9]}
45... Kc1 {[%clk 0:01:37.4]} 46. Ra8 {[%clk 0:01:13.3]} 46... Kb2 {[%clk
0:01:36.9]} 47. Ke4 {[%clk 0:01:13.2]} 47... a2 {[%clk 0:01:36.9]} 48. Kd4
{[%clk 0:01:13]} 48... a1=Q {[%clk 0:01:36.3]} 49. Rxa1 {[%clk 0:01:12.6]} 49...
Kxa1 {[%clk 0:01:37.2]} 50. Kc5 {[%clk 0:01:05.7]} 50... Kb2 {[%clk 0:01:18.2]}
51. Kd6 {[%clk 0:01:05.9]} 51... Rh6 {[%clk 0:01:18.3]} 52. Ke7 {[%clk
0:01:04.9]} 52... Rh8 {[%clk 0:01:18.4]} 53. Nxe6 {[%clk 0:01:01.1]} 53... Kc3
{[%clk 0:01:04.7]} 54. Nxg7 {[%clk 0:00:59.9]} 54... Kd4 {[%clk 0:01:04]} 55. e6
{[%clk 0:00:58.9]} 55... Ke5 {[%clk 0:01:03.4]} 56. Kf7 {[%clk 0:00:58.5]} 56...
Ke4 {[%clk 0:00:46.8]} 57. e7 {[%clk 0:00:57.6]} 57... Kf3 {[%clk 0:00:47]} 58.
Nxh5 {[%clk 0:00:56.2]} 58... Kg4 {[%clk 0:00:47.2]} 59. e8=Q {[%clk 0:00:54.8]}
59... Rxh5 {[%clk 0:00:44.5]} 60. Qe6+ {[%clk 0:00:45.1]} 60... Kxg3 {[%clk
0:00:42]} 61. Qg6+ {[%clk 0:00:44.2]} 61... Kxh4 {[%clk 0:00:42.2]} 62. Qg2
{[%clk 0:00:39.5]} 62... Rg5 {[%clk 0:00:40.2]} 63. Qf2+ {[%clk 0:00:37.9]}
63... Kg4 {[%clk 0:00:40.5]} 64. Qe2+ {[%clk 0:00:36.6]} 64... Kf4 {[%clk
0:00:39.3]} 65. Ke6 {[%clk 0:00:35.3]} 65... Rg6+ {[%clk 0:00:38.8]} 66. Kd5
{[%clk 0:00:33.2]} 66... Rg5+ {[%clk 0:00:38.8]} 67. Kd4 {[%clk 0:00:33.1]}
67... Kf5 {[%clk 0:00:39]} 68. Qf3+ {[%clk 0:00:32.3]} 68... Kg6 {[%clk
0:00:39.2]} 69. Qf8 {[%clk 0:00:28.7]} 69... Rf5 {[%clk 0:00:36.3]} 70. Qg8+
{[%clk 0:00:26.9]} 70... Kf6 {[%clk 0:00:36.5]} 71. Ke4 {[%clk 0:00:24.7]} 71...
Re5+ {[%clk 0:00:36.7]} 72. Kf4 {[%clk 0:00:24.6]} 72... Rf5+ {[%clk 0:00:37]}
73. Ke4 {[%clk 0:00:25]} 73... Re5+ {[%clk 0:00:37.3]} 74. Kd4 {[%clk
0:00:25.4]} 74... Rg5 {[%clk 0:00:36.6]} 75. Qf8+ {[%clk 0:00:24]} 75... Kg6
{[%clk 0:00:36]} 76. Ke4 {[%clk 0:00:23.7]} 76... Rg4+ {[%clk 0:00:35.6]} 77.
Ke5 {[%clk 0:00:23.2]} 77... Rg5+ {[%clk 0:00:36]} 78. Ke6 {[%clk 0:00:23.5]}
78... Kh5 {[%clk 0:00:36.4]} 79. Kf6 {[%clk 0:00:18.8]} 79... Rg6+ {[%clk
0:00:33.5]} 80. Kf5 {[%clk 0:00:18.6]} 80... Rg5+ {[%clk 0:00:33.9]} 81. Kf4
{[%clk 0:00:18.9]} 81... Rg4+ {[%clk 0:00:34.2]} 82. Kf3 {[%clk 0:00:19.2]}
82... Rg6 {[%clk 0:00:31.5]} 83. Qf5+ {[%clk 0:00:16]} 83... Kh6 {[%clk
0:00:31.3]} 84. Qf8+ {[%clk 0:00:15.8]} 84... Kh5 {[%clk 0:00:30.2]} 85. Qf7
{[%clk 0:00:14.3]} 85... Kh6 {[%clk 0:00:30]} 86. Kf4 {[%clk 0:00:13.3]} 86...
Rg7 {[%clk 0:00:30.3]} 87. Qf6+ {[%clk 0:00:12.2]} 87... Kh7 {[%clk 0:00:28.6]}
88. Kf5 {[%clk 0:00:11.2]} 88... Kg8 {[%clk 0:00:28.9]} 89. Qd8+ {[%clk
0:00:10.7]} 89... Kh7 {[%clk 0:00:29.3]} 90. Kf6 {[%clk 0:00:09.5]} 90... Rg6+
{[%clk 0:00:29.5]} 91. Kf7 {[%clk 0:00:08.3]} 91... Rg7+ {[%clk 0:00:29.8]} 92.
Kf6 {[%clk 0:00:08.5]} 92... Rg6+ {[%clk 0:00:30.2]} 93. Kf5 {[%clk 0:00:08.8]}
93... Rg7 {[%clk 0:00:29.2]} 94. Qh4+ {[%clk 0:00:08.9]} 94... Kg8 {[%clk
0:00:29.2]} 95. Kf6 {[%clk 0:00:09.3]} 95... Rf7+ {[%clk 0:00:29.5]} 96. Ke6
{[%clk 0:00:09.1]} 96... Rg7 {[%clk 0:00:29.8]} 97. Qd8+ {[%clk 0:00:08.4]}
97... Kh7 {[%clk 0:00:29.6]} 98. Kf6 {[%clk 0:00:08.6]} 1/2-1/2

[Event "Early-Titled-Tuesday-Blitz-May-14-2024"]
[Site "Chess.com"]
[Date "2024.05.14"]
[Round "1"]
[White "SoCalJuniorChess"]
[Black "Lion-Al-Messi"]
[Result "1-0"]
[WhiteElo "2209"]
[BlackElo "2570"]
[TimeControl "180+1"]
[EndTime "8:09:38 PDT"]
[Termination "SoCalJuniorChess won by resignation"]

1. d4 {[%clk 0:02:57]} 1... Nf6 {[%clk 0:02:59.7]} 2. Nc3 {[%clk 0:02:54.4]}
2... d5 {[%clk 0:02:59.4]} 3. Bf4 {[%clk 0:02:53.5]} 3... a6 {[%clk 0:03:00]} 4.
e3 {[%clk 0:02:52.6]} 4... e6 {[%clk 0:03:00.1]} 5. Nf3 {[%clk 0:02:50.3]} 5...
c5 {[%clk 0:02:59.9]} 6. Be2 {[%clk 0:02:41.7]} 6... Nc6 {[%clk 0:03:00]} 7. O-O
{[%clk 0:02:41.5]} 7... Be7 {[%clk 0:02:57.3]} 8. h3 {[%clk 0:02:41]} 8... O-O
{[%clk 0:02:57.2]} 9. dxc5 {[%clk 0:02:40.6]} 9... Bxc5 {[%clk 0:02:56.9]} 10.
Ne5 {[%clk 0:02:37.8]} 10... Nxe5 {[%clk 0:02:57]} 11. Bxe5 {[%clk 0:02:37.2]}
11... Nd7 {[%clk 0:02:57.7]} 12. Bh2 {[%clk 0:02:29.5]} 12... b5 {[%clk
0:02:57]} 13. Nxd5 {[%clk 0:02:20.8]} 13... exd5 {[%clk 0:02:55.7]} 14. Qxd5
{[%clk 0:02:21.7]} 14... Ra7 {[%clk 0:02:51.1]} 15. a4 {[%clk 0:02:13.2]} 15...
Bb7 {[%clk 0:02:50.4]} 16. Qd3 {[%clk 0:02:06]} 16... Qg5 {[%clk 0:02:42.3]} 17.
Bg3 {[%clk 0:01:48.6]} 17... Ne5 {[%clk 0:02:40.8]} 18. Qc3 {[%clk 0:01:44.7]}
18... Bd6 {[%clk 0:02:39.9]} 19. Qd4 {[%clk 0:01:42]} 19... Bb8 {[%clk
0:02:24.8]} 20. axb5 {[%clk 0:01:28.2]} 20... Rd8 {[%clk 0:02:21.8]} 21. Qb6
{[%clk 0:01:06.5]} 21... Qf6 {[%clk 0:02:14.3]} 22. Qxf6 {[%clk 0:01:00.2]}
22... gxf6 {[%clk 0:02:15.2]} 23. bxa6 {[%clk 0:00:51.7]} 23... Be4 {[%clk
0:02:14.9]} 24. c3 {[%clk 0:00:48]} 24... Bc7 {[%clk 0:02:12]} 25. Rfd1 {[%clk
0:00:46]} 25... Rb8 {[%clk 0:02:12.3]} 26. b4 {[%clk 0:00:42.8]} 26... Kg7
{[%clk 0:02:09.9]} 27. b5 {[%clk 0:00:35.5]} 27... Bb6 {[%clk 0:02:09.9]} 28. c4
{[%clk 0:00:32.5]} 28... Rc7 {[%clk 0:02:07.9]} 29. Rdc1 {[%clk 0:00:29.7]}
29... Rbc8 {[%clk 0:02:05.7]} 30. Bg4 {[%clk 0:00:27.5]} 30... Rd8 {[%clk
0:01:59.3]} 31. Ra4 {[%clk 0:00:16.7]} 31... Kg6 {[%clk 0:01:53.9]} 32. c5
{[%clk 0:00:16.1]} 32... h5 {[%clk 0:01:43.1]} 33. Bxh5+ {[%clk 0:00:08.9]}
33... Kxh5 {[%clk 0:01:44]} 34. Rxe4 {[%clk 0:00:08.8]} 34... Rd5 {[%clk
0:01:37.2]} 35. Bxe5 {[%clk 0:00:08.8]} 35... fxe5 {[%clk 0:01:35.7]} 36. cxb6
{[%clk 0:00:07.3]} 36... Rxc1+ {[%clk 0:01:35.4]} 37. Kh2 {[%clk 0:00:08.1]}
37... Rxb5 {[%clk 0:01:34.1]} 38. b7 {[%clk 0:00:07.6]} 38... Ra1 {[%clk
0:01:29]} 39. Rxe5+ {[%clk 0:00:07.2]} 39... Rxe5 {[%clk 0:01:29.7]} 40. b8=Q
{[%clk 0:00:07.6]} 40... Rea5 {[%clk 0:01:30.6]} 41. Qh8+ {[%clk 0:00:07.4]}
41... Kg6 {[%clk 0:01:30.7]} 42. Qg8+ {[%clk 0:00:07.6]} 42... Kf6 {[%clk
0:01:31]} 43. Qh8+ {[%clk 0:00:07.9]} 43... Ke7 {[%clk 0:01:31.3]} 44. Qh4+
{[%clk 0:00:06.7]} 44... Ke6 {[%clk 0:01:31.1]} 45. Qe4+ {[%clk 0:00:06.9]}
45... Kd7 {[%clk 0:01:31.4]} 46. Qd4+ {[%clk 0:00:07.1]} 46... Ke6 {[%clk
0:01:31.8]} 47. Qc4+ {[%clk 0:00:07.6]} 47... Kd7 {[%clk 0:01:32.2]} 48. Qd4+
{[%clk 0:00:07.6]} 48... Ke6 {[%clk 0:01:32.5]} 49. Qg4+ {[%clk 0:00:07.8]}
49... Ke7 {[%clk 0:01:32.9]} 50. Qe4+ {[%clk 0:00:05.6]} 50... Kf8 {[%clk
0:01:33.5]} 51. Qa8+ {[%clk 0:00:05.1]} 51... Kg7 {[%clk 0:01:34.2]} 52. Qb7
{[%clk 0:00:03.2]} 52... Rxa6 {[%clk 0:01:34.5]} 53. Qb2+ {[%clk 0:00:04]} 53...
Kf8 {[%clk 0:01:34.2]} 54. Qe2 {[%clk 0:00:04.9]} 54... R1a2 {[%clk 0:01:34.6]}
55. Qf3 {[%clk 0:00:05.3]} 55... Ke7 {[%clk 0:01:34.3]} 56. Qf4 {[%clk
0:00:05.4]} 56... R2a4 {[%clk 0:01:34.3]} 57. Qe5+ {[%clk 0:00:05.6]} 57... Kf8
{[%clk 0:01:34]} 58. Qh8+ {[%clk 0:00:05.5]} 58... Ke7 {[%clk 0:01:34]} 59. Qe5+
{[%clk 0:00:06.2]} 59... Kd7 {[%clk 0:01:34.4]} 60. Qd5+ {[%clk 0:00:06.7]}
60... Ke8 {[%clk 0:01:34.5]} 61. Qe5+ {[%clk 0:00:07]} 61... Kd8 {[%clk
0:01:34.4]} 62. Qh8+ {[%clk 0:00:07]} 62... Kd7 {[%clk 0:01:34.2]} 63. Qe5
{[%clk 0:00:07.3]} 63... R4a5 {[%clk 0:01:33.9]} 64. Qg7 {[%clk 0:00:06.6]}
64... Ke7 {[%clk 0:01:34.1]} 65. Qd4 {[%clk 0:00:05.3]} 65... f6 {[%clk
0:01:30.4]} 66. Qe4+ {[%clk 0:00:05.4]} 66... Kf7 {[%clk 0:01:30.2]} 67. Qb7+
{[%clk 0:00:05.7]} 67... Ke6 {[%clk 0:01:30.4]} 68. Qe4+ {[%clk 0:00:06.2]}
68... Kd6 {[%clk 0:01:29]} 69. Qd4+ {[%clk 0:00:06.3]} 69... Ke7 {[%clk
0:01:29.5]} 70. Qe4+ {[%clk 0:00:06.5]} 70... Kf7 {[%clk 0:01:29.8]} 71. Qb7+
{[%clk 0:00:06.7]} 71... Kg6 {[%clk 0:01:29.6]} 72. Qe4+ {[%clk 0:00:07.3]}
72... f5 {[%clk 0:01:29]} 73. Qe8+ {[%clk 0:00:06.9]} 73... Kf6 {[%clk
0:01:28.7]} 74. Qf8+ {[%clk 0:00:07.1]} 74... Ke6 {[%clk 0:01:29.1]} 75. Qe8+
{[%clk 0:00:07.7]} 75... Kd5 {[%clk 0:01:29.4]} 76. Qf7+ {[%clk 0:00:07.2]}
76... Kd6 {[%clk 0:01:28.9]} 77. Qf6+ {[%clk 0:00:06.7]} 77... Kc7 {[%clk
0:01:29.4]} 78. Qc3+ {[%clk 0:00:06.6]} 78... Kb7 {[%clk 0:01:27.9]} 79. Qg7+
{[%clk 0:00:06.5]} 79... Kb6 {[%clk 0:01:27.7]} 80. Qf6+ {[%clk 0:00:07]} 80...
Ka7 {[%clk 0:01:28.2]} 81. Qe7+ {[%clk 0:00:07.2]} 81... Kb6 {[%clk 0:01:28.6]}
82. Qd6+ {[%clk 0:00:07.6]} 82... Kb5 {[%clk 0:01:28.7]} 83. Qd5+ {[%clk
0:00:07.3]} 83... Kb4 {[%clk 0:01:29.2]} 84. Qd4+ {[%clk 0:00:07.5]} 84... Kb3
{[%clk 0:01:29.7]} 85. Qd3+ {[%clk 0:00:08]} 85... Kb2 {[%clk 0:01:29.8]} 86.
Qd2+ {[%clk 0:00:08.7]} 86... Kb1 {[%clk 0:01:30.2]} 87. Qd1+ {[%clk 0:00:09]}
87... Kb2 {[%clk 0:01:30.6]} 88. Qd2+ {[%clk 0:00:09.6]} 88... Kb3 {[%clk
0:01:31.1]} 89. Qd3+ {[%clk 0:00:10.3]} 89... Kb4 {[%clk 0:01:31.6]} 90. Qd4+
{[%clk 0:00:11]} 90... Kb5 {[%clk 0:01:31.9]} 91. Qd5+ {[%clk 0:00:10.9]} 91...
Kb6 {[%clk 0:01:32.4]} 92. Qd6+ {[%clk 0:00:11.3]} 92... Kb7 {[%clk 0:01:32.8]}
93. Qd7+ {[%clk 0:00:11.7]} 93... Kb8 {[%clk 0:01:32.8]} 94. Qd8+ {[%clk
0:00:12.1]} 94... Kb7 {[%clk 0:01:33.2]} 95. Qd7+ {[%clk 0:00:12.8]} 95... Ka8
{[%clk 0:01:33.3]} 96. Qc8+ {[%clk 0:00:13]} 96... Ka7 {[%clk 0:01:33.8]} 97.
Qc7+ {[%clk 0:00:13.5]} 97... Ka8 {[%clk 0:01:34.2]} 98. Qc8+ {[%clk 0:00:14]}
98... Ka7 {[%clk 0:01:34.7]} 99. Qc7+ {[%clk 0:00:14]} 99... Ka8 {[%clk
0:01:33.9]} 100. h4 {[%clk 0:00:13.7]} 100... Ra4 {[%clk 0:01:31.6]} 101. g3
{[%clk 0:00:13.1]} 101... Ra2 {[%clk 0:01:31.3]} 102. Qc8+ {[%clk 0:00:11.7]}
102... Ka7 {[%clk 0:01:31.3]} 103. Qxf5 {[%clk 0:00:12.3]} 103... R6a5 {[%clk
0:01:30.8]} 104. Qd7+ {[%clk 0:00:11.9]} 104... Kb6 {[%clk 0:01:31.2]} 105. Kg2
{[%clk 0:00:11.9]} 105... R2a4 {[%clk 0:01:23.8]} 106. h5 {[%clk 0:00:11.7]}
106... Ra8 {[%clk 0:01:22.4]} 107. h6 {[%clk 0:00:11.7]} 107... R4a7 {[%clk
0:01:22.8]} 108. Qd6+ {[%clk 0:00:11.5]} 108... Kb5 {[%clk 0:01:23.4]} 109. Qd5+
{[%clk 0:00:10.5]} 109... Kb6 {[%clk 0:01:23.6]} 110. h7 {[%clk 0:00:10.5]}
110... Rf8 {[%clk 0:01:19.5]} 111. h8=Q {[%clk 0:00:09.9]} 111... Rxh8 {[%clk
0:01:19.4]} 112. Qd4+ {[%clk 0:00:10.6]} 112... Kb7 {[%clk 0:01:19.9]} 113. Qxh8
{[%clk 0:00:11.1]} 113... Ra6 {[%clk 0:01:20.4]} 114. Qg7+ {[%clk 0:00:11.2]}
114... Kb6 {[%clk 0:01:20.5]} 115. Qf6+ {[%clk 0:00:11.8]} 115... Kb7 {[%clk
0:01:20.9]} 116. Qe5 {[%clk 0:00:12.3]} 116... Rc6 {[%clk 0:01:21.2]} 117. Qe4
{[%clk 0:00:11.7]} 117... Kc7 {[%clk 0:01:21.2]} 118. g4 {[%clk 0:00:12.2]}
118... Rf6 {[%clk 0:01:19.6]} 119. Qe5+ {[%clk 0:00:12.1]} 119... Rd6 {[%clk
0:01:19]} 120. g5 {[%clk 0:00:12.6]} 120... Kd7 {[%clk 0:01:19.4]} 121. Qf5+
{[%clk 0:00:12.2]} 121... Ke7 {[%clk 0:01:19.3]} 122. Kg3 {[%clk 0:00:12.3]}
122... Rd7 {[%clk 0:01:19.1]} 123. g6 {[%clk 0:00:12.1]} 123... Kd8 {[%clk
0:01:19.3]} 124. Qxd7+ {[%clk 0:00:11.9]} 124... Kxd7 {[%clk 0:01:19.3]} 125. g7
{[%clk 0:00:12.6]} 125... Ke6 {[%clk 0:01:19.6]} 126. g8=Q+ {[%clk 0:00:13.1]}
126... Kf6 {[%clk 0:01:20]} 127. Qg4 {[%clk 0:00:13.6]} 127... Ke5 {[%clk
0:01:19.8]} 128. Qf4+ {[%clk 0:00:14.3]} 128... Ke6 {[%clk 0:01:19.8]} 129. Qf8
{[%clk 0:00:14.4]} 129... Ke5 {[%clk 0:01:19.7]} 130. Qf3 {[%clk 0:00:15.1]}
130... Ke6 {[%clk 0:01:19.5]} 131. Kg2 {[%clk 0:00:15.8]} 131... Ke5 {[%clk
0:01:19.8]} 132. Kf1 {[%clk 0:00:16.5]} 132... Ke6 {[%clk 0:01:19.2]} 133. Ke2
{[%clk 0:00:17.1]} 133... Ke5 {[%clk 0:01:19.7]} 134. Qf4+ {[%clk 0:00:17.7]}
134... Kd5 {[%clk 0:01:19.3]} 135. Qa4 {[%clk 0:00:18.2]} 1-0

[Event "Early-Titled-Tuesday-Blitz-May-14-2024"]
[Site "Chess.com"]
[Date "2024.05.14"]
[Round "1"]
[White "snowlord"]
[Black "amanjazu"]
[Result "1-0"]
[WhiteElo "2928"]
[BlackElo "2526"]
[TimeControl "180+1"]
[EndTime "8:09:40 PDT"]
[Termination "snowlord won on time"]

1. d4 {[%clk 0:02:59]} 1... Nf6 {[%clk 0:02:57.5]} 2. c4 {[%clk 0:02:58.6]} 2...
g6 {[%clk 0:02:58.4]} 3. h4 {[%clk 0:02:56.5]} 3... h6 {[%clk 0:02:57.4]} 4. Nc3
{[%clk 0:02:56.1]} 4... Bg7 {[%clk 0:02:57.3]} 5. e4 {[%clk 0:02:56.2]} 5... d6
{[%clk 0:02:57.7]} 6. Be2 {[%clk 0:02:55.8]} 6... c5 {[%clk 0:02:57]} 7. d5
{[%clk 0:02:50.6]} 7... Nbd7 {[%clk 0:02:53.7]} 8. f4 {[%clk 0:02:36.8]} 8... h5
{[%clk 0:02:14.6]} 9. Nh3 {[%clk 0:02:36.2]} 9... Ng4 {[%clk 0:02:11.2]} 10. Ng5
{[%clk 0:02:11.5]} 10... Bd4 {[%clk 0:01:55.2]} 11. Bxg4 {[%clk 0:02:10.8]}
11... Bxc3+ {[%clk 0:01:50.9]} 12. bxc3 {[%clk 0:02:10.1]} 12... hxg4 {[%clk
0:01:51.8]} 13. a4 {[%clk 0:01:53.6]} 13... Nf6 {[%clk 0:01:27.2]} 14. e5 {[%clk
0:01:50]} 14... Nh7 {[%clk 0:01:24.4]} 15. Ne4 {[%clk 0:01:43.3]} 15... Bf5
{[%clk 0:01:23]} 16. Ng3 {[%clk 0:01:43.4]} 16... Qc7 {[%clk 0:01:05.5]} 17. Qe2
{[%clk 0:01:39.7]} 17... O-O-O {[%clk 0:01:05.8]} 18. O-O {[%clk 0:01:03.8]}
18... Nf8 {[%clk 0:00:52.7]} 19. h5 {[%clk 0:01:02.8]} 19... Nd7 {[%clk
0:00:48.4]} 20. Re1 {[%clk 0:01:01]} 20... e6 {[%clk 0:00:43.2]} 21. exd6 {[%clk
0:00:47.3]} 21... Qxd6 {[%clk 0:00:42.1]} 22. dxe6 {[%clk 0:00:48.1]} 22... fxe6
{[%clk 0:00:39.6]} 23. hxg6 {[%clk 0:00:43.8]} 23... Bxg6 {[%clk 0:00:23.7]} 24.
Qxe6 {[%clk 0:00:42.3]} 24... Qxe6 {[%clk 0:00:20.6]} 25. Rxe6 {[%clk
0:00:43.2]} 25... Bf7 {[%clk 0:00:21.5]} 26. Re7 {[%clk 0:00:42.2]} 26... Bxc4
{[%clk 0:00:21.6]} 27. Ne4 {[%clk 0:00:39.3]} 27... Kc7 {[%clk 0:00:18.8]} 28.
f5 {[%clk 0:00:39.5]} 28... Kc6 {[%clk 0:00:18.3]} 29. Be3 {[%clk 0:00:28.4]}
29... Rhe8 {[%clk 0:00:17.8]} 30. Bg5 {[%clk 0:00:16.6]} 30... Rxe7 {[%clk
0:00:16.1]} 31. Bxe7 {[%clk 0:00:17.5]} 31... Re8 {[%clk 0:00:16.3]} 32. Nd2
{[%clk 0:00:18.1]} 32... Rxe7 {[%clk 0:00:11.3]} 33. Nxc4 {[%clk 0:00:18.6]}
33... Re4 {[%clk 0:00:10.9]} 34. Nd2 {[%clk 0:00:14.2]} 34... Rf4 {[%clk
0:00:11.1]} 35. Rf1 {[%clk 0:00:12.6]} 35... Rxf1+ {[%clk 0:00:11.3]} 36. Kxf1
{[%clk 0:00:13.5]} 36... Kd5 {[%clk 0:00:12]} 37. Ke2 {[%clk 0:00:13.2]} 37...
Ke5 {[%clk 0:00:12.3]} 38. Nc4+ {[%clk 0:00:13]} 38... Kxf5 {[%clk 0:00:11.7]}
39. Nd6+ {[%clk 0:00:13.3]} 39... Kf4 {[%clk 0:00:12.1]} 40. Nxb7 {[%clk
0:00:14.2]} 40... Kg3 {[%clk 0:00:12.5]} 41. Kf1 {[%clk 0:00:14.1]} 41... c4
{[%clk 0:00:11.2]} 42. Nd6 {[%clk 0:00:14.5]} 42... Ne5 {[%clk 0:00:11.3]} 43.
Kg1 {[%clk 0:00:13.7]} 43... Kf4 {[%clk 0:00:11.3]} 44. Kf2 {[%clk 0:00:14.4]}
44... g3+ {[%clk 0:00:11.7]} 45. Ke2 {[%clk 0:00:15]} 45... Kg5 {[%clk
0:00:09.8]} 46. Ke3 {[%clk 0:00:15]} 46... Kg4 {[%clk 0:00:07.6]} 47. Ke4 {[%clk
0:00:15.6]} 47... Nd3 {[%clk 0:00:08.1]} 48. a5 {[%clk 0:00:15]} 48... Ne1
{[%clk 0:00:09]} 49. Nxc4 {[%clk 0:00:12.4]} 49... Nxg2 {[%clk 0:00:09.5]} 50.
Ne5+ {[%clk 0:00:12.5]} 50... Kh3 {[%clk 0:00:08.9]} 51. c4 {[%clk 0:00:12]}
51... Nh4 {[%clk 0:00:09.8]} 52. Nd3 {[%clk 0:00:10.4]} 52... g2 {[%clk
0:00:09.4]} 53. Nf4+ {[%clk 0:00:10.7]} 53... Kg4 {[%clk 0:00:08.8]} 54. Ne2
{[%clk 0:00:09.6]} 54... Kg5 {[%clk 0:00:05]} 55. c5 {[%clk 0:00:07.7]} 55...
Kf6 {[%clk 0:00:05.4]} 56. Kd5 {[%clk 0:00:07.3]} 56... Ke7 {[%clk 0:00:05.7]}
57. Kc6 {[%clk 0:00:07.9]} 57... Kd8 {[%clk 0:00:05.7]} 58. Kb7 {[%clk
0:00:08.2]} 58... Nf5 {[%clk 0:00:06.2]} 59. c6 {[%clk 0:00:08.7]} 59... Nd6+
{[%clk 0:00:05.6]} 60. Kb8 {[%clk 0:00:09.4]} 60... Nb5 {[%clk 0:00:05.8]} 61.
Ng1 {[%clk 0:00:08.6]} 61... a6 {[%clk 0:00:05]} 62. Kb7 {[%clk 0:00:08.2]}
62... Nd6+ {[%clk 0:00:05.2]} 63. Kb8 {[%clk 0:00:08.8]} 63... Nb5 {[%clk
0:00:05.3]} 64. Nf3 {[%clk 0:00:09.5]} 64... Nc7 {[%clk 0:00:05.6]} 65. Kb7
{[%clk 0:00:07.2]} 65... Ne6 {[%clk 0:00:04.8]} 66. Ng5 {[%clk 0:00:05.9]} 66...
Nxg5 {[%clk 0:00:02.4]} 67. c7+ {[%clk 0:00:06]} 67... Ke7 {[%clk 0:00:03.3]}
68. c8=Q {[%clk 0:00:06.7]} 68... g1=Q {[%clk 0:00:04.2]} 69. Qc7+ {[%clk
0:00:06.2]} 69... Kf6 {[%clk 0:00:04.6]} 70. Qd8+ {[%clk 0:00:06.2]} 70... Kg6
{[%clk 0:00:04.6]} 71. Qg8+ {[%clk 0:00:06.3]} 71... Kh5 {[%clk 0:00:04.8]} 72.
Qh8+ {[%clk 0:00:06.2]} 72... Kg4 {[%clk 0:00:05.3]} 73. Qc8+ {[%clk 0:00:07.1]}
73... Kg3 {[%clk 0:00:04.7]} 74. Kxa6 {[%clk 0:00:08]} 74... Qb1 {[%clk
0:00:04.7]} 75. Qc3+ {[%clk 0:00:07.3]} 75... Nf3 {[%clk 0:00:05.2]} 76. Ka7
{[%clk 0:00:07]} 76... Qh7+ {[%clk 0:00:05]} 77. Kb6 {[%clk 0:00:07.2]} 77...
Kg4 {[%clk 0:00:05.9]} 78. Qc8+ {[%clk 0:00:07]} 78... Kg3 {[%clk 0:00:06.1]}
79. a6 {[%clk 0:00:07.5]} 79... Qb1+ {[%clk 0:00:05.7]} 80. Ka7 {[%clk 0:00:08]}
80... Nd4 {[%clk 0:00:06.2]} 81. Qb7 {[%clk 0:00:06.4]} 81... Nb5+ {[%clk
0:00:06]} 82. Ka8 {[%clk 0:00:06.2]} 82... Kf4 {[%clk 0:00:05.6]} 83. a7 {[%clk
0:00:05.6]} 83... Ke5 {[%clk 0:00:05.8]} 84. Kb8 {[%clk 0:00:05.5]} 84... Qg6
{[%clk 0:00:02.6]} 85. Qxb5+ {[%clk 0:00:05.4]} 1-0